fUST/lending_fUST_20240430
["ID","MTS","AMOUNT","RATE_DAILY","PERIOD"]
[324971812,1714480293698,-500.0,0.0003589,7]
[324971813,1714480293707,-1498.55,0.0003589,7]
[324971814,1714480293716,-500.0,0.0003589,7]
[324971815,1714480293726,-500.0,0.0003589,7]
[324971816,1714480293736,-500.0,0.0003589,7]
[324971817,1714480293745,-500.0,0.0003589,7]
[324971818,1714480293757,-509.77,0.0003589,7]
[324971819,1714480293767,-500.0,0.0003589,7]
[324971820,1714480293776,-574.86,0.0003589,7]
[324971821,1714480293785,-652.87,0.0003589,7]
[324971822,1714480293795,-500.0,0.0003589,7]
[324971823,1714480293804,-638.59,0.0003589,7]
[324971824,1714480293813,-1324.85,0.0003589,7]
[324971825,1714480293825,-511.97,0.0003589,7]
[324971826,1714480293835,-1440.78,0.0003589,7]
[324971827,1714480293844,-598.74,0.0003589,7]
[324971828,1714480293854,-911.25,0.0003589,7]
[324971829,1714480293863,-630.12,0.0003589,7]
[324971830,1714480293872,-1896.05,0.0003589,7]
[324971831,1714480293881,-903.11,0.0003589,7]
[324971832,1714480293891,-1752.96,0.0003589,7]
[324971833,1714480293901,-2770.12,0.0003589,7]
[324971834,1714480293911,-2114.85,0.0003589,7]
[324971835,1714480293920,-500.0,0.0003589,7]
[324971836,1714480293929,-657.48,0.0003589,7]
[324971837,1714480293938,-500.0,0.0003589,7]
[324971838,1714480293948,-500.0,0.0003589,7]
[324971839,1714480293958,-577.33,0.0003589,7]
[324971840,1714480293968,-594.83,0.0003589,7]
[324971841,1714480293977,-527.95,0.0003589,7]
[324971842,1714480293987,-937.55,0.0003589,7]
[324971843,1714480293997,-1269.88,0.0003589,7]
[324971844,1714480294007,-500.0,0.0003589,7]
[324971845,1714480294016,-846.37,0.0003589,7]
[324971846,1714480294026,-500.0,0.0003589,7]
[324971847,1714480294036,-1025.5,0.0003589,7]
[324971848,1714480294046,-8014.06,0.0003589,7]
[324971849,1714480294055,-2622.44,0.0003589,7]
[324971850,1714480294064,-500.0,0.0003589,7]
[324971851,1714480294080,-685.27,0.0003589,7]
[324971852,1714480294089,-804.08,0.0003589,7]
[324971853,1714480294098,-532.84,0.0003589,7]
[324971854,1714480294108,-1897.04,0.0003589,7]
[324971855,1714480294117,-1006.5,0.0003589,7]
[324971856,1714480294127,-560.38,0.0003589,7]
[324971857,1714480294137,-500.0,0.0003589,7]
[324971858,1714480294147,-603.01,0.0003589,7]
[324971859,1714480294157,-530.17,0.0003589,7]
[324971860,1714480294167,-921.22,0.0003589,7]
[324971861,1714480294177,-513.6,0.0003589,7]
[324971862,1714480294187,-928.29,0.0003589,7]
[324971863,1714480294196,-500.0,0.0003589,7]
[324971864,1714480294207,-500.0,0.0003589,7]
[324971865,1714480294216,-3236.72,0.0003589,7]
[324971866,1714480294225,-505.64,0.0003589,7]
[324971867,1714480294235,-1780.15,0.0003589,7]
[324971868,1714480294244,-500.0,0.0003589,7]
[324971869,1714480294253,-577.75,0.0003589,7]
[324971870,1714480294263,-500.0,0.0003589,7]
[324971871,1714480294272,-1137.4,0.0003589,7]
[324971872,1714480294281,-500.0,0.0003589,7]
[324971873,1714480294290,-933.38,0.0003589,7]
[324971874,1714480294300,-500.0,0.0003589,7]
[324971875,1714480294310,-1628.49,0.0003589,7]
[324971876,1714480294322,-556.41,0.0003589,7]
[324971877,1714480294332,-3242.44,0.0003589,7]
[324971878,1714480294341,-611.4,0.0003589,7]
[324971879,1714480294350,-500.0,0.0003589,7]
[324971880,1714480294360,-2127.99,0.0003589,7]
[324971881,1714480294370,-799.99,0.0003589,7]
[324971882,1714480294379,-1320.84,0.0003589,7]
[324971883,1714480294388,-500.0,0.0003589,7]
[324971884,1714480294398,-518.31,0.0003589,7]
[324971885,1714480294407,-500.0,0.0003589,7]
[324971886,1714480294417,-1525.02,0.0003589,7]
[324971887,1714480294426,-654.2,0.0003589,7]
[324971888,1714480294435,-545.68,0.0003589,7]
[324971889,1714480294444,-1273.96,0.0003589,7]
[324971890,1714480294454,-1761.83,0.0003589,7]
[324971891,1714480294463,-639.64,0.0003589,7]
[324971892,1714480294472,-500.0,0.0003589,7]
[324971893,1714480294482,-500.0,0.0003589,7]
[324971894,1714480294491,-555.04,0.0003589,7]
[324971895,1714480294500,-1774.44,0.0003589,7]
[324971896,1714480294509,-1354.57,0.0003589,7]
[324971897,1714480294519,-3447.14,0.0003589,7]
[324971898,1714480294528,-786.77,0.0003589,7]
[324971899,1714480294538,-707.6,0.0003589,7]
[324971900,1714480294547,-569.7,0.0003589,7]
[324971901,1714480294556,-500.0,0.0003589,7]
[324971902,1714480294566,-751.5,0.0003589,7]
[324971903,1714480294669,-500.0,0.0003589,7]
[324971904,1714480294681,-500.0,0.0003589,7]
[324971905,1714480294690,-475.60935481,0.0003589,30]
[324971906,1714480294700,-1391.74,0.0003589,7]
[324971907,1714480294709,-1469.45,0.0003589,7]
[324971908,1714480294720,-555.55887338,0.0003589,7]
[324971909,1714480294730,-200.0,0.00035944,120]
[324971910,1714480294739,-200.0,0.00035986,120]
[324971911,1714480294749,-280.0,0.00036,2]
[324971912,1714480294759,-153.21482082,0.00036032,7]
[324971913,1714480294769,-620.0,0.00036131,2]
[324971914,1714480294778,-601.99885445,0.00036162,7]
[324971915,1714480294787,-999.19,0.00036164,7]
[324971916,1714480294797,-995.58,0.00036164,7]
[324971917,1714480294806,-513.93,0.00036164,7]
[324971918,1714480294815,-716.63,0.00036164,7]
[324971919,1714480294833,-500.0,0.00036164,7]
[324971920,1714480294842,-500.0,0.00036164,7]
[324971921,1714480294851,-523.81,0.00036164,7]
[324971922,1714480294860,-890.43,0.00036164,7]
[324971923,1714480294869,-500.0,0.00036164,7]
[324971924,1714480294880,-1768.07,0.00036164,7]
[324971925,1714480294889,-500.0,0.00036164,7]
[324971926,1714480294899,-1498.98,0.00036164,7]
[324971927,1714480294908,-500.0,0.00036164,7]
[324971928,1714480294918,-882.34,0.00036164,7]
[324971929,1714480294928,-894.99,0.00036164,7]
[324971930,1714480294938,-599.82,0.00036164,7]
[324971931,1714480294947,-785.65,0.00036164,7]
[324971932,1714480294957,-500.0,0.00036164,7]
[324971933,1714480294966,-500.0,0.00036164,7]
[324971934,1714480294976,-559.33,0.00036164,7]
[324971935,1714480294986,-500.0,0.00036164,7]
[324971936,1714480294995,-500.0,0.00036164,2]
[324971937,1714480295005,-1442.92,0.00036164,7]
[324971938,1714480295015,-500.0,0.00036164,7]
[324971939,1714480295024,-500.0,0.00036164,7]
[324971940,1714480295034,-500.0,0.00036164,7]
[324971941,1714480295043,-728.48,0.00036164,7]
[324971942,1714480295053,-500.0,0.00036164,7]
[324971943,1714480295063,-554.17,0.00036164,7]
[324971944,1714480295080,-672.86,0.00036164,7]
[324971945,1714480295090,-1006.99,0.00036164,7]
[324971946,1714480295100,-1748.77,0.00036164,7]
[324971947,1714480295109,-652.12,0.00036164,7]
[324971948,1714480295119,-570.84,0.00036164,7]
[324971949,1714480295129,-500.0,0.00036164,7]
[324971950,1714480295139,-1498.55,0.00036164,7]
[324971951,1714480295148,-500.0,0.00036164,7]
[324971952,1714480295159,-235.0902185,0.00036164,7]
[324971953,1714480295169,-500.0,0.00036164,7]
[324971954,1714480295179,-500.0,0.00036164,7]
[324971955,1714480295189,-509.77,0.00036164,7]
[324971956,1714480295199,-500.0,0.00036164,7]
[324971957,1714480295209,-574.86,0.00036164,7]
[324971958,1714480295220,-652.87,0.00036164,7]
[324971959,1714480295230,-500.0,0.00036164,7]
[324971960,1714480295240,-638.59,0.00036164,7]
[324971961,1714480295250,-1324.85,0.00036164,7]
[324971962,1714480295259,-511.97,0.00036164,7]
[324971963,1714480295269,-1440.78,0.00036164,7]
[324971964,1714480295279,-598.74,0.00036164,7]
[324971965,1714480295289,-911.25,0.00036164,7]
[324971966,1714480295298,-630.12,0.00036164,7]
[324971967,1714480295308,-1896.05,0.00036164,7]
[324971968,1714480295321,-903.11,0.00036164,7]
[324971969,1714480295333,-1752.96,0.00036164,7]
[324971970,1714480295342,-2770.12,0.00036164,7]
[324971971,1714480295351,-2114.85,0.00036164,7]
[324971972,1714480295360,-500.0,0.00036164,7]
[324971973,1714480295370,-657.48,0.00036164,7]
[324971974,1714480295380,-500.0,0.00036164,7]
[324971975,1714480295390,-500.0,0.00036164,7]
[324971976,1714480295399,-577.33,0.00036164,7]
[324971977,1714480295409,-594.83,0.00036164,7]
[324971978,1714480295419,-527.95,0.00036164,7]
[324971979,1714480295429,-937.55,0.00036164,7]
[324971980,1714480295439,-1269.88,0.00036164,7]
[324971981,1714480295449,-500.0,0.00036164,7]
[324971982,1714480295460,-846.37,0.00036164,7]
[324971983,1714480295469,-500.0,0.00036164,7]
[324971984,1714480295479,-1025.5,0.00036164,7]
[324971985,1714480295488,-8014.06,0.00036164,7]
[324971986,1714480295497,-2622.44,0.00036164,7]
[324971987,1714480295507,-351.69316233,0.00036164,7]
[324971988,1714480295517,-685.27,0.00036164,7]
[324971989,1714480295527,-804.08,0.00036164,7]
[324971990,1714480295536,-532.84,0.00036164,7]
[324971991,1714480295545,-1897.04,0.00036164,7]
[324971992,1714480295555,-1006.5,0.00036164,7]
[324971993,1714480295565,-560.38,0.00036164,7]
[324971994,1714480295580,-500.0,0.00036164,7]
[324971995,1714480295590,-603.01,0.00036164,7]
[324971996,1714480295599,-530.17,0.00036164,7]
[324971997,1714480295609,-921.22,0.00036164,7]
[324971998,1714480295619,-513.6,0.00036164,7]
[324971999,1714480295629,-928.29,0.00036164,7]
[324972000,1714480295639,-500.0,0.00036164,7]
[324972001,1714480295648,-500.0,0.00036164,7]
[324972002,1714480295658,-3236.72,0.00036164,7]
[324972003,1714480295668,-505.64,0.00036164,7]
[324972004,1714480295681,-1780.15,0.00036164,7]
[324972005,1714480295691,-500.0,0.00036164,7]
[324972006,1714480295701,-577.75,0.00036164,7]
[324972007,1714480295711,-500.0,0.00036164,7]
[324972008,1714480295721,-1137.4,0.00036164,7]
[324972009,1714480295730,-500.0,0.00036164,7]
[324972010,1714480295739,-933.38,0.00036164,7]
[324972011,1714480295750,-500.0,0.00036164,7]
[324972012,1714480295760,-1628.49,0.00036164,7]
[324972013,1714480295770,-556.41,0.00036164,7]
[324972014,1714480295780,-611.4,0.00036164,7]
[324972015,1714480295789,-3242.44,0.00036164,7]
[324972016,1714480295798,-500.0,0.00036164,7]
[324972017,1714480295808,-2127.99,0.00036164,7]
[324972018,1714480295820,-799.99,0.00036164,7]
[324972019,1714480295830,-1320.84,0.00036164,7]
[324972020,1714480295839,-500.0,0.00036164,7]
[324972021,1714480295849,-518.31,0.00036164,7]
[324972022,1714480295859,-500.0,0.00036164,7]
[324972023,1714480295868,-1525.02,0.00036164,7]
[324972024,1714480295877,-654.2,0.00036164,7]
[324972025,1714480295887,-545.68,0.00036164,7]
[324972026,1714480295897,-1273.96,0.00036164,7]
[324972027,1714480295907,-1761.83,0.00036164,7]
[324972028,1714480295917,-639.64,0.00036164,7]
[324972029,1714480295927,-500.0,0.00036164,7]
[324972030,1714480295937,-500.0,0.00036164,7]
[324972031,1714480295947,-555.04,0.00036164,7]
[324972032,1714480295957,-1774.44,0.00036164,7]
[324972033,1714480295966,-1354.57,0.00036164,7]
[324972034,1714480295976,-3447.14,0.00036164,7]
[324972035,1714480295985,-786.77,0.00036164,7]
[324972036,1714480295995,-707.6,0.00036164,7]
[324972037,1714480296005,-569.7,0.00036164,7]
[324972038,1714480296015,-500.0,0.00036164,7]
[324972039,1714480296025,-751.5,0.00036164,7]
[324972040,1714480296035,-500.0,0.00036164,7]
[324972041,1714480296044,-500.0,0.00036164,7]
[324972042,1714480296054,-1391.74,0.00036164,7]
[324972043,1714480296063,-1469.45,0.00036164,7]
[324972044,1714480296076,-153.21482082,0.00036411,7]
[324972045,1714480296085,-167.372942,0.00036424,2]
[324972046,1714480296094,-178.979253,0.00036424,2]
[324972047,1714480296104,-223.724069,0.00036424,2]
[324972048,1714480296113,-495.929683,0.00036424,2]
[324972049,1714480296123,-999.19,0.00036438,7]
[324972050,1714480296226,-995.58,0.00036438,7]
[324972051,1714480296236,-513.93,0.00036438,7]
[324972052,1714480296245,-716.63,0.00036438,7]
[324972053,1714480296254,-500.0,0.00036438,7]
[324972054,1714480296263,-500.0,0.00036438,7]
[324972055,1714480296273,-523.81,0.00036438,7]
[324972056,1714480296282,-890.43,0.00036438,7]
[324972057,1714480296291,-500.0,0.00036438,7]
[324972058,1714480296301,-1768.07,0.00036438,7]
[324972059,1714480296310,-500.0,0.00036438,7]
[324972060,1714480296323,-1498.98,0.00036438,7]
[324972061,1714480296334,-604.5924382,0.00036438,7]
[324972062,1714480296343,-882.34,0.00036438,7]
[324972063,1714480296353,-894.99,0.00036438,7]
[324972064,1714480296363,-599.82,0.00036438,7]
[324972065,1714480296372,-785.65,0.00036438,7]
[324972066,1714480296381,-500.0,0.00036438,7]
[324972067,1714480296391,-500.0,0.00036438,7]
[324972068,1714480296401,-559.33,0.00036438,7]
[324972069,1714480296411,-500.0,0.00036438,7]
[324972070,1714480296420,-500.0,0.00036438,2]
[324972071,1714480296430,-1442.92,0.00036438,7]
[324972072,1714480296440,-584.65579901,0.00036438,7]
[324972073,1714480296449,-500.0,0.00036438,7]
[324972074,1714480296458,-500.0,0.00036438,7]
[324972075,1714480296468,-728.48,0.00036438,7]
[324972076,1714480296478,-500.0,0.00036438,7]
[324972077,1714480296487,-554.17,0.00036438,7]
[324972078,1714480296496,-672.86,0.00036438,7]
[324972079,1714480296506,-1006.99,0.00036438,7]
[324972080,1714480296515,-1748.77,0.00036438,7]
[324972081,1714480296525,-652.12,0.00036438,7]
[324972082,1714480296535,-570.84,0.00036438,7]
[324972083,1714480296544,-500.0,0.00036438,7]
[324972084,1714480296554,-1498.55,0.00036438,7]
[324972085,1714480296564,-500.0,0.00036438,7]
[324972086,1714480296576,-500.0,0.00036438,7]
[324972087,1714480296586,-500.0,0.00036438,7]
[324972088,1714480296595,-509.77,0.00036438,7]
[324972089,1714480296605,-503.78366724,0.00036438,7]
[324972090,1714480296615,-574.86,0.00036438,7]
[324972091,1714480296625,-652.87,0.00036438,7]
[324972092,1714480296635,-500.0,0.00036438,7]
[324972093,1714480296645,-638.59,0.00036438,7]
[324972094,1714480296654,-1324.85,0.00036438,7]
[324972095,1714480296666,-511.97,0.00036438,7]
[324972096,1714480296676,-1440.78,0.00036438,7]
[324972097,1714480296686,-598.74,0.00036438,7]
[324972098,1714480296695,-911.25,0.00036438,7]
[324972099,1714480296705,-630.12,0.00036438,7]
[324972100,1714480296715,-1896.05,0.00036438,7]
[324972101,1714480296724,-903.11,0.00036438,7]
[324972102,1714480296734,-1752.96,0.00036438,7]
[324972103,1714480296744,-2770.12,0.00036438,7]
[324972104,1714480296754,-2114.85,0.00036438,7]
[324972105,1714480296764,-500.0,0.00036438,7]
[324972106,1714480296773,-657.48,0.00036438,7]
[324972107,1714480296783,-500.0,0.00036438,7]
[324972108,1714480296793,-500.0,0.00036438,7]
[324972109,1714480296803,-577.33,0.00036438,7]
[324972110,1714480296812,-594.83,0.00036438,7]
[324972111,1714480296824,-527.95,0.00036438,7]
[324972112,1714480296833,-937.55,0.00036438,7]
[324972113,1714480296843,-1269.88,0.00036438,7]
[324972114,1714480296852,-500.0,0.00036438,7]
[324972115,1714480296861,-846.37,0.00036438,7]
[324972116,1714480296871,-500.0,0.00036438,7]
[324972117,1714480296884,-1025.5,0.00036438,7]
[324972118,1714480296903,-8014.06,0.00036438,7]
[324972119,1714480296920,-2622.44,0.00036438,7]
[324972120,1714480296938,-685.27,0.00036438,7]
[324972121,1714480296958,-804.08,0.00036438,7]
[324972122,1714480296975,-532.84,0.00036438,7]
[324972123,1714480296993,-1897.04,0.00036438,7]
[324972124,1714480297007,-1006.5,0.00036438,7]
[324972125,1714480297024,-560.38,0.00036438,7]
[324972126,1714480297043,-500.0,0.00036438,7]
[324972127,1714480297062,-603.01,0.00036438,7]
[324972128,1714480297078,-530.17,0.00036438,7]
[324972129,1714480297096,-921.22,0.00036438,7]
[324972130,1714480297110,-513.6,0.00036438,7]
[324972131,1714480297126,-928.29,0.00036438,7]
[324972132,1714480297140,-500.0,0.00036438,7]
[324972133,1714480297155,-500.0,0.00036438,7]
[324972134,1714480297169,-3236.72,0.00036438,7]
[324972135,1714480297184,-505.64,0.00036438,7]
[324972136,1714480297199,-1780.15,0.00036438,7]
[324972137,1714480297215,-500.0,0.00036438,7]
[324972138,1714480297230,-577.75,0.00036438,7]
[324972139,1714480297245,-501.92783458,0.00036438,7]
[324972140,1714480297260,-1137.4,0.00036438,7]
[324972141,1714480297276,-500.0,0.00036438,7]
[324972142,1714480297290,-933.38,0.00036438,7]
[324972143,1714480297306,-500.0,0.00036438,7]
[324972144,1714480297326,-1628.49,0.00036438,7]
[324972145,1714480297341,-556.41,0.00036438,7]
[324972146,1714480297356,-611.4,0.00036438,7]
[324972147,1714480297371,-3242.44,0.00036438,7]
[324972148,1714480297386,-445.46714833,0.00036438,7]
[324972149,1714480297401,-2127.99,0.00036438,7]
[324972150,1714480297416,-799.99,0.00036438,7]
[324972151,1714480297431,-1320.84,0.00036438,7]
[324972152,1714480297446,-500.0,0.00036438,7]
[324972153,1714480297461,-518.31,0.00036438,7]
[324972154,1714480297475,-500.0,0.00036438,7]
[324972155,1714480297489,-1525.02,0.00036438,7]
[324972156,1714480297504,-654.2,0.00036438,7]
[324972157,1714480297519,-545.68,0.00036438,7]
[324972158,1714480297533,-1273.96,0.00036438,7]
[324972159,1714480297548,-1761.83,0.00036438,7]
[324972160,1714480297562,-639.64,0.00036438,7]
[324972161,1714480297581,-500.0,0.00036438,7]
[324972162,1714480297596,-500.0,0.00036438,7]
[324972163,1714480297610,-555.04,0.00036438,7]
[324972164,1714480297625,-1774.44,0.00036438,7]
[324972165,1714480297639,-1354.57,0.00036438,7]
[324972166,1714480297654,-3447.14,0.00036438,7]
[324972167,1714480297670,-786.77,0.00036438,7]
[324972168,1714480297686,-707.6,0.00036438,7]
[324972169,1714480297701,-569.7,0.00036438,7]
[324972170,1714480297717,-500.0,0.00036438,7]
[324972171,1714480297733,-751.5,0.00036438,7]
[324972172,1714480297748,-500.0,0.00036438,7]
[324972173,1714480297763,-500.0,0.00036438,7]
[324972174,1714480297779,-1391.74,0.00036438,7]
[324972175,1714480297793,-1469.45,0.00036438,7]
[324972176,1714480297808,-152.79752244,0.00036657,7]
[324972177,1714480297826,-1255.4,0.00036663,14]
[324972178,1714480297842,-999.19,0.00036712,7]
[324972179,1714480297857,-995.58,0.00036712,7]
[324972180,1714480297871,-513.93,0.00036712,7]
[324972181,1714480297886,-716.63,0.00036712,7]
[324972182,1714480297901,-500.0,0.00036712,7]
[324972183,1714480297916,-500.0,0.00036712,7]
[324972184,1714480297934,-523.81,0.00036712,7]
[324972185,1714480298077,-890.43,0.00036712,7]
[324972186,1714480298089,-187.87521482,0.00036712,7]
[324972187,1714480298098,-1768.07,0.00036712,7]
[324972188,1714480298108,-580.83868443,0.00036712,7]
[324972189,1714480298120,-1498.98,0.00036712,7]
[324972190,1714480298129,-882.34,0.00036712,7]
[324972191,1714480298139,-894.99,0.00036712,7]
[324972192,1714480298149,-599.82,0.00036712,7]
[324972193,1714480298159,-785.65,0.00036712,7]
[324972194,1714480298169,-500.0,0.00036712,7]
[324972195,1714480298178,-500.0,0.00036712,7]
[324972196,1714480298188,-559.33,0.00036712,7]
[324972197,1714480298198,-500.0,0.00036712,7]
[324972198,1714480298208,-151.29285404,0.00036712,2]
[324972199,1714480298217,-1442.92,0.00036712,7]
[324972200,1714480298226,-477.39460032,0.00036712,7]
[324972201,1714480298236,-500.0,0.00036712,7]
[324972202,1714480298246,-728.48,0.00036712,7]
[324972203,1714480298255,-500.0,0.00036712,7]
[324972204,1714480298265,-554.17,0.00036712,7]
[324972205,1714480298275,-672.86,0.00036712,7]
[324972206,1714480298285,-1006.99,0.00036712,7]
[324972207,1714480298294,-1748.77,0.00036712,7]
[324972208,1714480298304,-652.12,0.00036712,7]
[324972209,1714480298314,-570.84,0.00036712,7]
[324972210,1714480298330,-500.0,0.00036712,7]
[324972211,1714480298340,-1498.55,0.00036712,7]
[324972212,1714480298349,-500.0,0.00036712,7]
[324972213,1714480298359,-500.0,0.00036712,7]
[324972214,1714480298368,-503.91695924,0.00036712,7]
[324972215,1714480298377,-509.77,0.00036712,7]
[324972216,1714480298387,-574.86,0.00036712,7]
[324972217,1714480298396,-652.87,0.00036712,7]
[324972218,1714480298406,-279.2074271,0.00036712,7]
[324972219,1714480298415,-638.59,0.00036712,7]
[324972220,1714480298424,-1324.85,0.00036712,7]
[324972221,1714480298434,-511.97,0.00036712,7]
[324972222,1714480298444,-1440.78,0.00036712,7]
[324972223,1714480298453,-598.74,0.00036712,7]
[324972224,1714480298464,-911.25,0.00036712,7]
[324972225,1714480298474,-630.12,0.00036712,7]
[324972226,1714480298483,-1896.05,0.00036712,7]
[324972227,1714480298493,-903.11,0.00036712,7]
[324972228,1714480298503,-1752.96,0.00036712,7]
[324972229,1714480298512,-2770.12,0.00036712,7]
[324972230,1714480298521,-2114.85,0.00036712,7]
[324972231,1714480298531,-500.0,0.00036712,7]
[324972232,1714480298541,-657.48,0.00036712,7]
[324972233,1714480298551,-601.25055373,0.00036712,7]
[324972234,1714480298560,-500.0,0.00036712,7]
[324972235,1714480298570,-577.33,0.00036712,7]
[324972236,1714480298588,-594.83,0.00036712,7]
[324972237,1714480298597,-527.95,0.00036712,7]
[324972238,1714480298606,-937.55,0.00036712,7]
[324972239,1714480298616,-1269.88,0.00036712,7]
[324972240,1714480298625,-500.0,0.00036712,7]
[324972241,1714480298635,-846.37,0.00036712,7]
[324972242,1714480298645,-500.0,0.00036712,7]
[324972243,1714480298654,-1025.5,0.00036712,7]
[324972244,1714480298665,-8014.06,0.00036712,7]
[324972245,1714480298676,-2622.44,0.00036712,7]
[324972246,1714480298685,-685.27,0.00036712,7]
[324972247,1714480298694,-804.08,0.00036712,7]
[324972248,1714480298704,-532.84,0.00036712,7]
[324972249,1714480298714,-1897.04,0.00036712,7]
[324972250,1714480298723,-1006.5,0.00036712,7]
[324972251,1714480298733,-560.38,0.00036712,7]
[324972252,1714480298743,-500.0,0.00036712,7]
[324972253,1714480298753,-603.01,0.00036712,7]
[324972254,1714480298764,-530.17,0.00036712,7]
[324972255,1714480298773,-921.22,0.00036712,7]
[324972256,1714480298783,-513.6,0.00036712,7]
[324972257,1714480298793,-928.29,0.00036712,7]
[324972258,1714480298802,-500.0,0.00036712,7]
[324972259,1714480298812,-500.0,0.00036712,7]
[324972260,1714480298825,-3236.72,0.00036712,7]
[324972261,1714480298834,-505.64,0.00036712,7]
[324972262,1714480298844,-1780.15,0.00036712,7]
[324972263,1714480298853,-500.0,0.00036712,7]
[324972264,1714480298862,-577.75,0.00036712,7]
[324972265,1714480298871,-1137.4,0.00036712,7]
[324972266,1714480298880,-500.0,0.00036712,7]
[324972267,1714480298891,-933.38,0.00036712,7]
[324972268,1714480298900,-500.0,0.00036712,7]
[324972269,1714480298909,-1628.49,0.00036712,7]
[324972270,1714480298919,-556.41,0.00036712,7]
[324972271,1714480298928,-611.4,0.00036712,7]
[324972272,1714480298937,-3242.44,0.00036712,7]
[324972273,1714480298947,-2127.99,0.00036712,7]
[324972274,1714480298957,-799.99,0.00036712,7]
[324972275,1714480298967,-1320.84,0.00036712,7]
[324972276,1714480298976,-347.45887725,0.00036712,7]
[324972277,1714480298986,-518.31,0.00036712,7]
[324972278,1714480298995,-500.0,0.00036712,7]
[324972279,1714480299004,-1525.02,0.00036712,7]
[324972280,1714480299014,-654.2,0.00036712,7]
[324972281,1714480299024,-545.68,0.00036712,7]
[324972282,1714480299034,-1273.96,0.00036712,7]
[324972283,1714480299044,-1761.83,0.00036712,7]
[324972284,1714480299054,-639.64,0.00036712,7]
[324972285,1714480299063,-500.0,0.00036712,7]
[324972286,1714480299077,-347.97535903,0.00036712,7]
[324972287,1714480299086,-555.04,0.00036712,7]
[324972288,1714480299095,-1774.44,0.00036712,7]
[324972289,1714480299104,-1354.57,0.00036712,7]
[324972290,1714480299113,-3447.14,0.00036712,7]
[324972291,1714480299123,-786.77,0.00036712,7]
[324972292,1714480299132,-707.6,0.00036712,7]
[324972293,1714480299141,-569.7,0.00036712,7]
[324972294,1714480299151,-500.0,0.00036712,7]
[324972295,1714480299161,-751.5,0.00036712,7]
[324972296,1714480299171,-500.0,0.00036712,7]
[324972297,1714480299180,-262.47285849,0.00036712,7]
[324972298,1714480299190,-1391.74,0.00036712,7]
[324972299,1714480299200,-1469.45,0.00036712,7]
[324972300,1714480299209,-178.979253,0.00036879,2]
[324972301,1714480299219,-495.929683,0.00036879,2]
[324972302,1714480299228,-999.19,0.00036986,7]
[324972303,1714480299238,-995.58,0.00036986,7]
[324972304,1714480299248,-513.93,0.00036986,7]
[324972305,1714480299258,-716.63,0.00036986,7]
[324972306,1714480299267,-500.0,0.00036986,7]
[324972307,1714480299277,-500.0,0.00036986,7]
[324972308,1714480299287,-523.81,0.00036986,7]
[324972309,1714480299295,-890.43,0.00036986,7]
[324972310,1714480299305,-1768.07,0.00036986,7]
[324972311,1714480299315,-1498.98,0.00036986,7]